[Event "Titled Tuesday Blitz December 7 2021"]
[White "Yilmaz, Mustafa"]
[Black "Garagulya, Konstantin"]
[WhiteFideId "6302718"]
[BlackFideId "4128931"]
[WhiteElo "2568"]
[BlackElo "2329"]
[Result "1-0"]
[Round "09"]
[TimeControl "180+1"]
[Date "2021.12.07"]
[WhiteClock "0:00:26"]
[BlackClock "0:00:01"]

1. e4 {[%clk 0:03:00]}  c5 {[%clk 0:02:44]} 2. b3 {[%clk 0:02:59]}  Nc6 {[%clk 0:02:43]} 3. Bb2 {[%clk 0:02:59]}  a6 {[%clk 0:02:42]} 4. f4 {[%clk 0:02:59]}  d6 {[%clk 0:02:42]} 5. Nf3 {[%clk 0:02:59]}  e6 {[%clk 0:02:42]} 6. d4 {[%clk 0:02:52]}  cxd4 {[%clk 0:02:41]} 7. Nxd4 {[%clk 0:02:52]}  Bd7 {[%clk 0:02:41]} 8. Bd3 {[%clk 0:02:50]}  Nf6 {[%clk 0:02:41]} 9. Qe2 {[%clk 0:02:42]}  Be7 {[%clk 0:02:34]} 10. Nf3 {[%clk 0:02:35]}  O-O {[%clk 0:02:29]} 11. O-O {[%clk 0:02:32]}  Rc8 {[%clk 0:02:26]} 12. a3 {[%clk 0:02:29]}  Qb6+ {[%clk 0:02:22]} 13. Kh1 {[%clk 0:02:29]}  Rfd8 {[%clk 0:02:18]} 14. Nbd2 {[%clk 0:02:29]}  Qc7 {[%clk 0:02:17]} 15. e5 {[%clk 0:02:28]}  Nd5 {[%clk 0:01:44]} 16. Ng5 {[%clk 0:02:15]}  Bxg5 {[%clk 0:01:13]} 17. exd6 {[%clk 0:01:58]}  Qxd6 {[%clk 0:01:10]} 18. fxg5 {[%clk 0:01:50]}  Nf4 {[%clk 0:00:34]} 19. Qf3 {[%clk 0:01:08]}  e5 {[%clk 0:00:32]} 20. Nc4 {[%clk 0:01:04]}  Qe6 {[%clk 0:00:17]} 21. Be4 {[%clk 0:01:01]}  b5 {[%clk 0:00:12]} 22. Nb6 {[%clk 0:01:00]}  Rc7 {[%clk 0:00:10]} 23. Nd5 {[%clk 0:00:58]}  Rcc8 {[%clk 0:00:08]} 24. Rad1 {[%clk 0:00:50]}  Be8 {[%clk 0:00:08]} 25. g3 {[%clk 0:00:42]}  Nxd5 {[%clk 0:00:06]} 26. Bxd5 {[%clk 0:00:42]}  Qg6 {[%clk 0:00:06]} 27. c4 {[%clk 0:00:32]}  bxc4 {[%clk 0:00:05]} 28. bxc4 {[%clk 0:00:32]}  Nd4 {[%clk 0:00:04]} 29. Bxd4 {[%clk 0:00:31]}  exd4 {[%clk 0:00:05]} 30. h4 {[%clk 0:00:29]}  Rc7 {[%clk 0:00:01]} 31. Rxd4 {[%clk 0:00:28]}  Rcd7 {[%clk 0:00:01]} 32. Re4 {[%clk 0:00:26]} 1-0


[Site "https://www.chess.com"]

[Event "Titled Tuesday Blitz December 7 2021"]
[White "Yoo, Christopher Woojin"]
[Black "Arencibia Monduy, Antonio"]
[WhiteFideId "30909694"]
[BlackFideId "3507939"]
[WhiteElo "2105"]
[BlackElo "2642"]
[Result "1-0"]
[Round "09"]
[TimeControl "180+1"]
[Date "2021.12.07"]
[WhiteClock "0:01:05"]
[BlackClock "0:00:01"]

1. e4 {[%clk 0:03:00]}  e6 {[%clk 0:02:59]} 2. d4 {[%clk 0:02:59]}  d5 {[%clk 0:03:00]} 3. Bd3 {[%clk 0:03:00]}  dxe4 {[%clk 0:03:00]} 4. Bxe4 {[%clk 0:03:00]}  Nf6 {[%clk 0:02:58]} 5. Bf3 {[%clk 0:03:01]}  c5 {[%clk 0:02:48]} 6. Ne2 {[%clk 0:03:00]}  Nc6 {[%clk 0:02:32]} 7. Be3 {[%clk 0:02:59]}  e5 {[%clk 0:02:13]} 8. Bxc6+ {[%clk 0:02:55]}  bxc6 {[%clk 0:02:13]} 9. dxe5 {[%clk 0:02:55]}  Qxd1+ {[%clk 0:02:13]} 10. Kxd1 {[%clk 0:02:56]}  Ng4 {[%clk 0:02:13]} 11. Nbc3 {[%clk 0:02:55]}  Nxe3+ {[%clk 0:02:06]} 12. fxe3 {[%clk 0:02:54]}  g6 {[%clk 0:02:05]} 13. Ne4 {[%clk 0:02:44]}  Bf5 {[%clk 0:01:40]} 14. N2g3 {[%clk 0:02:33]}  Bg4+ {[%clk 0:01:40]} 15. Ke1 {[%clk 0:02:32]}  Bg7 {[%clk 0:01:36]} 16. Nf6+ {[%clk 0:02:28]}  Bxf6 {[%clk 0:01:34]} 17. exf6 {[%clk 0:02:29]}  O-O-O {[%clk 0:01:31]} 18. h3 {[%clk 0:02:23]}  Be6 {[%clk 0:01:21]} 19. Rf1 {[%clk 0:02:15]}  Rhe8 {[%clk 0:01:13]} 20. Rf4 {[%clk 0:02:15]}  g5 {[%clk 0:01:02]} 21. Ra4 {[%clk 0:02:11]}  Kb7 {[%clk 0:00:54]} 22. Rd1 {[%clk 0:01:51]}  Rxd1+ {[%clk 0:00:46]} 23. Kxd1 {[%clk 0:01:52]}  Bd5 {[%clk 0:00:33]} 24. e4 {[%clk 0:01:49]}  Be6 {[%clk 0:00:33]} 25. Ke2 {[%clk 0:01:42]}  Rd8 {[%clk 0:00:31]} 26. e5 {[%clk 0:01:33]}  Kb6 {[%clk 0:00:25]} 27. b3 {[%clk 0:01:24]}  c4 {[%clk 0:00:12]} 28. bxc4 {[%clk 0:01:23]}  Rd4 {[%clk 0:00:07]} 29. Ke3 {[%clk 0:01:22]}  Rd1 {[%clk 0:00:06]} 30. Ne4 {[%clk 0:01:19]}  Re1+ {[%clk 0:00:05]} 31. Kd4 {[%clk 0:01:19]}  Rd1+ {[%clk 0:00:05]} 32. Kc3 {[%clk 0:01:19]}  Rg1 {[%clk 0:00:05]} 33. Nxg5 {[%clk 0:01:18]}  Bf5 {[%clk 0:00:01]} 34. e6 {[%clk 0:01:06]}  fxe6 {[%clk 0:00:01]} 35. f7 {[%clk 0:01:05]} 1-0


[Site "https://www.chess.com"]

[Event "Titled Tuesday Blitz December 7 2021"]
[White "Zhigalko, Sergei"]
[Black "Alinasab, Mobina"]
[WhiteFideId "13502956"]
[BlackFideId "12528897"]
[WhiteElo "2662"]
[BlackElo "2061"]
[Result "1-0"]
[Round "09"]
[TimeControl "180+1"]
[Date "2021.12.07"]
[WhiteClock "0:00:20"]
[BlackClock "0:00:05"]

1. e4 {[%clk 0:03:00]}  c5 {[%clk 0:02:58]} 2. Nf3 {[%clk 0:03:01]}  d6 {[%clk 0:02:56]} 3. d4 {[%clk 0:03:00]}  cxd4 {[%clk 0:02:56]} 4. Qxd4 {[%clk 0:03:01]}  Nc6 {[%clk 0:02:54]} 5. Bb5 {[%clk 0:03:00]}  Bd7 {[%clk 0:02:54]} 6. Bxc6 {[%clk 0:03:01]}  bxc6 {[%clk 0:02:55]} 7. c4 {[%clk 0:03:00]}  e5 {[%clk 0:02:54]} 8. Qd3 {[%clk 0:03:00]}  h6 {[%clk 0:02:53]} 9. Nc3 {[%clk 0:03:01]}  Qc7 {[%clk 0:02:52]} 10. O-O {[%clk 0:03:01]}  Nf6 {[%clk 0:02:52]} 11. Be3 {[%clk 0:03:00]}  Be6 {[%clk 0:02:50]} 12. Rac1 {[%clk 0:02:58]}  Qb7 {[%clk 0:02:24]} 13. b3 {[%clk 0:02:50]}  Rd8 {[%clk 0:02:22]} 14. Qc2 {[%clk 0:02:45]}  Qb8 {[%clk 0:02:15]} 15. h3 {[%clk 0:02:37]}  Be7 {[%clk 0:02:15]} 16. Rfd1 {[%clk 0:02:37]}  O-O {[%clk 0:02:13]} 17. Rd2 {[%clk 0:02:36]}  Rc8 {[%clk 0:01:41]} 18. Rcd1 {[%clk 0:02:34]}  Rfd8 {[%clk 0:01:35]} 19. Qb1 {[%clk 0:02:32]}  Rd7 {[%clk 0:01:17]} 20. Rd3 {[%clk 0:02:16]}  Rcd8 {[%clk 0:01:13]} 21. Qa1 {[%clk 0:02:14]}  Ne8 {[%clk 0:01:03]} 22. Na4 {[%clk 0:02:04]}  f5 {[%clk 0:00:57]} 23. exf5 {[%clk 0:02:04]}  Bxf5 {[%clk 0:00:58]} 24. R3d2 {[%clk 0:02:05]}  Be4 {[%clk 0:00:35]} 25. Nxe5 {[%clk 0:01:58]}  Rc7 {[%clk 0:00:25]} 26. Nd3 {[%clk 0:01:36]}  Qc8 {[%clk 0:00:17]} 27. Qd4 {[%clk 0:01:28]}  Bg6 {[%clk 0:00:15]} 28. Qg4 {[%clk 0:01:11]}  Bf5 {[%clk 0:00:14]} 29. Qg3 {[%clk 0:01:11]}  Kh8 {[%clk 0:00:14]} 30. Nf4 {[%clk 0:01:09]}  Nf6 {[%clk 0:00:12]} 31. Ng6+ {[%clk 0:01:00]}  Bxg6 {[%clk 0:00:12]} 32. Qxg6 {[%clk 0:01:01]}  Qe6 {[%clk 0:00:11]} 33. Nc5 {[%clk 0:00:56]}  Qc8 {[%clk 0:00:10]} 34. Nd3 {[%clk 0:00:55]}  Bf8 {[%clk 0:00:07]} 35. Nf4 {[%clk 0:00:41]}  Ng8 {[%clk 0:00:04]} 36. Bd4 {[%clk 0:00:26]}  Ne7 {[%clk 0:00:05]} 37. Qxh6+ {[%clk 0:00:23]}  Kg8 {[%clk 0:00:05]} 38. Qh5 {[%clk 0:00:21]}  Nf5 {[%clk 0:00:05]} 39. Ng6 {[%clk 0:00:21]}  Nxd4 {[%clk 0:00:05]} 40. Rxd4 {[%clk 0:00:21]}  Qe6 {[%clk 0:00:05]} 41. Rf4 {[%clk 0:00:20]} 1-0


[Site "https://www.chess.com"]

[Event "Titled Tuesday Blitz December 7 2021"]
[White "Batbold, Nyamsuren"]
[Black "Padmini, Rout"]
[WhiteFideId "4903331"]
[BlackFideId "5029295"]
[WhiteElo "1816"]
[BlackElo "2276"]
[Result "0-1"]
[Round "10"]
[TimeControl "180+1"]
[Date "2021.12.07"]
[WhiteClock "0:00:17"]
[BlackClock "0:00:16"]

1. Nf3 {[%clk 0:03:00]}  Nf6 {[%clk 0:02:59]} 2. d4 {[%clk 0:02:59]}  g6 {[%clk 0:02:59]} 3. c4 {[%clk 0:02:58]}  Bg7 {[%clk 0:02:59]} 4. h4 {[%clk 0:02:59]}  O-O {[%clk 0:03:00]} 5. Bg5 {[%clk 0:02:57]}  d6 {[%clk 0:02:58]} 6. Bxf6 {[%clk 0:02:57]}  exf6 {[%clk 0:02:57]} 7. h5 {[%clk 0:02:58]}  f5 {[%clk 0:02:56]} 8. Nc3 {[%clk 0:02:55]}  c5 {[%clk 0:02:54]} 9. e3 {[%clk 0:02:53]}  Nc6 {[%clk 0:02:53]} 10. Be2 {[%clk 0:02:48]}  cxd4 {[%clk 0:02:45]} 11. exd4 {[%clk 0:02:48]}  Re8 {[%clk 0:02:45]} 12. O-O {[%clk 0:02:45]}  gxh5 {[%clk 0:02:26]} 13. d5 {[%clk 0:02:40]}  Ne7 {[%clk 0:02:18]} 14. Ng5 {[%clk 0:02:37]}  h4 {[%clk 0:02:16]} 15. Nh3 {[%clk 0:02:24]}  Ng6 {[%clk 0:02:15]} 16. Bd3 {[%clk 0:02:20]}  Qf6 {[%clk 0:02:10]} 17. Nb5 {[%clk 0:02:17]}  Rf8 {[%clk 0:02:02]} 18. Rb1 {[%clk 0:02:12]}  Bd7 {[%clk 0:02:00]} 19. Nc3 {[%clk 0:02:10]}  Rae8 {[%clk 0:01:46]} 20. Qh5 {[%clk 0:02:06]}  h6 {[%clk 0:01:41]} 21. Bc2 {[%clk 0:01:51]}  Re5 {[%clk 0:01:32]} 22. Qf3 {[%clk 0:01:38]}  Rfe8 {[%clk 0:01:27]} 23. Nf4 {[%clk 0:01:37]}  Nxf4 {[%clk 0:01:26]} 24. Qxf4 {[%clk 0:01:38]}  Qg5 {[%clk 0:01:26]} 25. Qf3 {[%clk 0:01:35]}  a6 {[%clk 0:01:05]} 26. b4 {[%clk 0:01:20]}  f4 {[%clk 0:00:54]} 27. Ne4 {[%clk 0:01:19]}  Qg6 {[%clk 0:00:53]} 28. Nc5 {[%clk 0:00:57]}  Qxc2 {[%clk 0:00:39]} 29. Nxd7 {[%clk 0:00:57]}  R5e7 {[%clk 0:00:37]} 30. Nb6 {[%clk 0:00:56]}  Bd4 {[%clk 0:00:29]} 31. c5 {[%clk 0:00:56]}  Re2 {[%clk 0:00:27]} 32. Nd7 {[%clk 0:00:39]}  Rxf2 {[%clk 0:00:19]} 33. Qg4+ {[%clk 0:00:18]}  Kh8 {[%clk 0:00:19]} 34. Kh1 {[%clk 0:00:18]}  Rg8 {[%clk 0:00:18]} 35. Qxh4 {[%clk 0:00:18]}  Rxf1+ {[%clk 0:00:15]} 36. Rxf1 {[%clk 0:00:17]}  Qxg2# {[%clk 0:00:16]} 0-1


[Site "https://www.chess.com"]

[Event "Titled Tuesday Blitz December 7 2021"]
[White "Bazarov, Konstantin"]
[Black "Itkis, Boris"]
[WhiteFideId "4137000"]
[BlackFideId "1209167"]
[WhiteElo "2079"]
[BlackElo "2207"]
[Result "1-0"]
[Round "10"]
[TimeControl "180+1"]
[Date "2021.12.07"]
[WhiteClock "0:01:06"]
[BlackClock "0:00:46"]

1. Nf3 {[%clk 0:03:00]}  d5 {[%clk 0:02:57]} 2. e3 {[%clk 0:03:00]}  Nf6 {[%clk 0:02:51]} 3. c4 {[%clk 0:03:00]}  dxc4 {[%clk 0:02:46]} 4. Bxc4 {[%clk 0:02:59]}  a6 {[%clk 0:02:42]} 5. a4 {[%clk 0:02:56]}  e6 {[%clk 0:02:39]} 6. d4 {[%clk 0:02:55]}  Nc6 {[%clk 0:02:39]} 7. O-O {[%clk 0:02:55]}  Bd6 {[%clk 0:02:39]} 8. b3 {[%clk 0:02:54]}  O-O {[%clk 0:02:39]} 9. Ba3 {[%clk 0:02:52]}  Qe7 {[%clk 0:02:36]} 10. Bxd6 {[%clk 0:02:47]}  cxd6 {[%clk 0:02:36]} 11. Nc3 {[%clk 0:02:46]}  Bd7 {[%clk 0:02:35]} 12. e4 {[%clk 0:02:44]}  Rac8 {[%clk 0:02:29]} 13. Rc1 {[%clk 0:02:43]}  e5 {[%clk 0:02:28]} 14. d5 {[%clk 0:02:40]}  Nb4 {[%clk 0:02:20]} 15. h3 {[%clk 0:02:35]}  Rc7 {[%clk 0:02:11]} 16. Qd2 {[%clk 0:02:31]}  Rfc8 {[%clk 0:02:10]} 17. Rfe1 {[%clk 0:02:31]}  a5 {[%clk 0:02:00]} 18. Qe3 {[%clk 0:02:16]}  Rc5 {[%clk 0:01:59]} 19. Nd2 {[%clk 0:02:09]}  Qd8 {[%clk 0:01:57]} 20. f4 {[%clk 0:02:07]}  exf4 {[%clk 0:01:51]} 21. Qxf4 {[%clk 0:02:07]}  Qb6 {[%clk 0:01:51]} 22. Kh1 {[%clk 0:02:05]}  R5c7 {[%clk 0:01:28]} 23. Rf1 {[%clk 0:02:02]}  Be8 {[%clk 0:01:19]} 24. Qg3 {[%clk 0:01:52]}  Kh8 {[%clk 0:01:14]} 25. Nf3 {[%clk 0:01:46]}  Re7 {[%clk 0:01:11]} 26. Rce1 {[%clk 0:01:40]}  Na6 {[%clk 0:01:10]} 27. Nh4 {[%clk 0:01:39]}  Bd7 {[%clk 0:01:07]} 28. Rxf6 {[%clk 0:01:29]}  gxf6 {[%clk 0:01:06]} 29. Qf4 {[%clk 0:01:29]}  Qd4 {[%clk 0:01:00]} 30. Re3 {[%clk 0:01:25]}  Qe5 {[%clk 0:01:00]} 31. Qf1 {[%clk 0:01:23]}  Nc5 {[%clk 0:00:55]} 32. Nf3 {[%clk 0:01:22]}  Qh5 {[%clk 0:00:50]} 33. Nd4 {[%clk 0:01:19]}  Rce8 {[%clk 0:00:48]} 34. Qxf6+ {[%clk 0:01:18]}  Kg8 {[%clk 0:00:45]} 35. Rg3+ {[%clk 0:01:18]}  Qg6 {[%clk 0:00:45]} 36. Rxg6+ {[%clk 0:01:10]}  hxg6 {[%clk 0:00:46]} 37. Qxd6 {[%clk 0:01:06]} 1-0


[Site "https://www.chess.com"]

[Event "Titled Tuesday Blitz December 7 2021"]
[White "Begunov, Konstantin"]
[Black "Kepeshchuk, Mykhaylo"]
[WhiteFideId "4118510"]
[BlackFideId "14113139"]
[WhiteElo "2262"]
[BlackElo "2279"]
[Result "1-0"]
[Round "10"]
[TimeControl "180+1"]
[Date "2021.12.07"]
[WhiteClock "0:00:25"]
[BlackClock "0:00:23"]

1. d4 {[%clk 0:03:00]}  Nf6 {[%clk 0:02:52]} 2. c4 {[%clk 0:03:00]}  c5 {[%clk 0:02:52]} 3. Nf3 {[%clk 0:02:59]}  g6 {[%clk 0:02:50]} 4. Nc3 {[%clk 0:02:59]}  cxd4 {[%clk 0:02:50]} 5. Nxd4 {[%clk 0:03:00]}  Bg7 {[%clk 0:02:50]} 6. g3 {[%clk 0:03:00]}  O-O {[%clk 0:02:51]} 7. Bg2 {[%clk 0:03:01]}  Nc6 {[%clk 0:02:52]} 8. O-O {[%clk 0:03:01]}  Nxd4 {[%clk 0:02:52]} 9. Qxd4 {[%clk 0:03:02]}  d6 {[%clk 0:02:53]} 10. Qd2 {[%clk 0:03:02]}  a6 {[%clk 0:02:53]} 11. b3 {[%clk 0:03:02]}  Rb8 {[%clk 0:02:53]} 12. Bb2 {[%clk 0:03:02]}  b5 {[%clk 0:02:53]} 13. cxb5 {[%clk 0:02:43]}  axb5 {[%clk 0:02:54]} 14. b4 {[%clk 0:02:43]}  Be6 {[%clk 0:02:48]} 15. Rac1 {[%clk 0:02:34]}  Qd7 {[%clk 0:02:37]} 16. Rfd1 {[%clk 0:02:29]}  Rfc8 {[%clk 0:02:33]} 17. a3 {[%clk 0:02:28]}  Bb3 {[%clk 0:02:32]} 18. Re1 {[%clk 0:02:27]}  Qa7 {[%clk 0:02:27]} 19. Nxb5 {[%clk 0:02:12]}  Qb6 {[%clk 0:02:19]} 20. Nd4 {[%clk 0:02:09]}  Ba4 {[%clk 0:02:13]} 21. Rxc8+ {[%clk 0:01:58]}  Rxc8 {[%clk 0:02:11]} 22. Rc1 {[%clk 0:01:57]}  Rxc1+ {[%clk 0:02:06]} 23. Qxc1 {[%clk 0:01:58]}  h6 {[%clk 0:01:47]} 24. Qc8+ {[%clk 0:01:47]}  Kh7 {[%clk 0:01:47]} 25. Qb7 {[%clk 0:01:43]}  Qd8 {[%clk 0:01:40]} 26. Nc6 {[%clk 0:01:37]}  Bxc6 {[%clk 0:01:40]} 27. Bxc6 {[%clk 0:01:36]}  e6 {[%clk 0:01:35]} 28. Qxf7 {[%clk 0:01:30]}  e5 {[%clk 0:01:32]} 29. a4 {[%clk 0:01:10]}  Qb6 {[%clk 0:01:27]} 30. Qb7 {[%clk 0:01:08]}  Qd8 {[%clk 0:01:21]} 31. a5 {[%clk 0:01:06]}  Ng4 {[%clk 0:01:02]} 32. a6 {[%clk 0:01:02]}  Qf6 {[%clk 0:00:59]} 33. Bf3 {[%clk 0:00:57]}  Qf5 {[%clk 0:00:54]} 34. a7 {[%clk 0:00:48]}  Qb1+ {[%clk 0:00:47]} 35. Kg2 {[%clk 0:00:48]}  Qxb2 {[%clk 0:00:43]} 36. a8=Q {[%clk 0:00:46]}  Nf6 {[%clk 0:00:28]} 37. Qaa7 {[%clk 0:00:41]}  Ne8 {[%clk 0:00:28]} 38. Qe7 {[%clk 0:00:35]}  d5 {[%clk 0:00:24]} 39. Qxe8 {[%clk 0:00:31]}  e4 {[%clk 0:00:24]} 40. Qaf7 {[%clk 0:00:25]}  exf3+ {[%clk 0:00:23]} 41. exf3 {[%clk 0:00:25]} 1-0


[Site "https://www.chess.com"]

[Event "Titled Tuesday Blitz December 7 2021"]
[White "Brunello, Marina"]
[Black "Licznerski, Lukasz"]
[WhiteFideId "822590"]
[BlackFideId "1179250"]
[WhiteElo "2328"]
[BlackElo "2403"]
[Result "0-1"]
[Round "10"]
[TimeControl "180+1"]
[Date "2021.12.07"]
[WhiteClock "0:00:20"]
[BlackClock "0:00:19"]

1. e4 {[%clk 0:02:59]}  c6 {[%clk 0:02:59]} 2. d4 {[%clk 0:02:59]}  d5 {[%clk 0:03:00]} 3. e5 {[%clk 0:03:00]}  Bf5 {[%clk 0:03:00]} 4. Nf3 {[%clk 0:03:00]}  e6 {[%clk 0:03:00]} 5. Be2 {[%clk 0:03:00]}  Ne7 {[%clk 0:03:01]} 6. O-O {[%clk 0:03:00]}  Bg6 {[%clk 0:03:02]} 7. Nbd2 {[%clk 0:02:59]}  c5 {[%clk 0:03:02]} 8. b3 {[%clk 0:02:39]}  cxd4 {[%clk 0:02:47]} 9. Nxd4 {[%clk 0:02:35]}  Nec6 {[%clk 0:02:48]} 10. Bb2 {[%clk 0:02:34]}  Nxd4 {[%clk 0:02:46]} 11. Bxd4 {[%clk 0:02:32]}  Nc6 {[%clk 0:02:47]} 12. Bb2 {[%clk 0:02:18]}  Bc5 {[%clk 0:02:45]} 13. Nf3 {[%clk 0:02:12]}  O-O {[%clk 0:02:45]} 14. a3 {[%clk 0:01:58]}  a5 {[%clk 0:02:40]} 15. h3 {[%clk 0:01:48]}  Qb6 {[%clk 0:02:39]} 16. Bd3 {[%clk 0:01:43]}  Rac8 {[%clk 0:02:18]} 17. Bxg6 {[%clk 0:01:27]}  fxg6 {[%clk 0:02:17]} 18. Ng5 {[%clk 0:01:24]}  Bxf2+ {[%clk 0:02:01]} 19. Kh1 {[%clk 0:01:24]}  Ne7 {[%clk 0:01:42]} 20. Rxf2 {[%clk 0:01:01]}  Rxf2 {[%clk 0:01:39]} 21. Bd4 {[%clk 0:01:00]}  Rf1+ {[%clk 0:01:01]} 22. Qxf1 {[%clk 0:01:00]}  Qxd4 {[%clk 0:01:02]} 23. Qf7+ {[%clk 0:01:00]}  Kh8 {[%clk 0:01:02]} 24. Re1 {[%clk 0:01:00]}  Nf5 {[%clk 0:00:56]} 25. Nxe6 {[%clk 0:00:58]}  Qf2 {[%clk 0:00:56]} 26. Qd7 {[%clk 0:00:20]}  Qxe1+ {[%clk 0:00:42]} 27. Kh2 {[%clk 0:00:20]}  Qg3+ {[%clk 0:00:42]} 28. Kh1 {[%clk 0:00:20]}  Qe1+ {[%clk 0:00:43]} 29. Kh2 {[%clk 0:00:20]}  Qxe5+ {[%clk 0:00:44]} 30. Kh1 {[%clk 0:00:21]}  Rg8 {[%clk 0:00:28]} 31. Nd8 {[%clk 0:00:20]}  Nh6 {[%clk 0:00:19]} 0-1


[Site "https://www.chess.com"]

[Event "Titled Tuesday Blitz December 7 2021"]
[White "Cvetanovic, Uros"]
[Black "Koepke, Christian"]
[WhiteFideId "900672"]
[BlackFideId "4655737"]
[WhiteElo "2282"]
[BlackElo "2180"]
[Result "1-0"]
[Round "10"]
[TimeControl "180+1"]
[Date "2021.12.07"]
[WhiteClock "0:00:06"]
[BlackClock "0:00:05"]

1. Nc3 {[%clk 0:02:59]}  c5 {[%clk 0:02:59]} 2. e4 {[%clk 0:02:59]}  Nc6 {[%clk 0:02:58]} 3. f4 {[%clk 0:02:59]}  g6 {[%clk 0:02:58]} 4. Nf3 {[%clk 0:02:59]}  Bg7 {[%clk 0:02:58]} 5. d3 {[%clk 0:02:59]}  d6 {[%clk 0:02:53]} 6. h3 {[%clk 0:02:59]}  Rb8 {[%clk 0:02:50]} 7. g4 {[%clk 0:02:58]}  b5 {[%clk 0:02:49]} 8. Ne2 {[%clk 0:02:56]}  h5 {[%clk 0:02:45]} 9. g5 {[%clk 0:02:39]}  e6 {[%clk 0:02:44]} 10. Nh4 {[%clk 0:02:36]}  Nge7 {[%clk 0:02:40]} 11. Ng3 {[%clk 0:02:36]}  b4 {[%clk 0:02:30]} 12. Bg2 {[%clk 0:02:22]}  Nd4 {[%clk 0:02:20]} 13. O-O {[%clk 0:02:14]}  a5 {[%clk 0:02:19]} 14. Bd2 {[%clk 0:01:59]}  Qb6 {[%clk 0:02:10]} 15. Kh1 {[%clk 0:01:50]}  Qa6 {[%clk 0:02:03]} 16. Be3 {[%clk 0:01:42]}  Bd7 {[%clk 0:01:57]} 17. Rb1 {[%clk 0:01:39]}  d5 {[%clk 0:01:30]} 18. Bxd4 {[%clk 0:01:34]}  Bxd4 {[%clk 0:01:27]} 19. f5 {[%clk 0:01:35]}  dxe4 {[%clk 0:01:02]} 20. f6 {[%clk 0:01:20]}  Nd5 {[%clk 0:00:50]} 21. Bxe4 {[%clk 0:01:18]}  Ne3 {[%clk 0:00:48]} 22. Qf3 {[%clk 0:01:18]}  Nxf1 {[%clk 0:00:47]} 23. Rxf1 {[%clk 0:01:16]}  Rf8 {[%clk 0:00:43]} 24. b3 {[%clk 0:01:10]}  Rc8 {[%clk 0:00:43]} 25. Nxg6 {[%clk 0:01:08]}  fxg6 {[%clk 0:00:42]} 26. Bxg6+ {[%clk 0:01:09]}  Kd8 {[%clk 0:00:42]} 27. Qxh5 {[%clk 0:01:06]}  Bc6+ {[%clk 0:00:35]} 28. Be4 {[%clk 0:01:02]}  Qb7 {[%clk 0:00:26]} 29. Qg4 {[%clk 0:00:57]}  Be5 {[%clk 0:00:22]} 30. Bxc6 {[%clk 0:00:56]}  Qxc6+ {[%clk 0:00:20]} 31. Ne4 {[%clk 0:00:57]}  Rc7 {[%clk 0:00:19]} 32. Kg1 {[%clk 0:00:51]}  Rcf7 {[%clk 0:00:19]} 33. g6 {[%clk 0:00:24]}  Bd4+ {[%clk 0:00:19]} 34. Kh2 {[%clk 0:00:21]}  Be5+ {[%clk 0:00:14]} 35. Kg1 {[%clk 0:00:21]}  Bd4+ {[%clk 0:00:15]} 36. Kh2 {[%clk 0:00:13]}  Be5+ {[%clk 0:00:15]} 37. Kh1 {[%clk 0:00:13]}  Rxf6 {[%clk 0:00:11]} 38. Rxf6 {[%clk 0:00:13]}  Rxf6 {[%clk 0:00:12]} 39. g7 {[%clk 0:00:13]}  Rf1+ {[%clk 0:00:13]} 40. Kg2 {[%clk 0:00:13]}  Bxg7 {[%clk 0:00:13]} 41. Kxf1 {[%clk 0:00:14]}  Bd4 {[%clk 0:00:09]} 42. h4 {[%clk 0:00:14]}  Qe8 {[%clk 0:00:07]} 43. h5 {[%clk 0:00:14]}  Qf7+ {[%clk 0:00:07]} 44. Kg2 {[%clk 0:00:15]}  Ke7 {[%clk 0:00:05]} 45. Qg6 {[%clk 0:00:07]}  Qf4 {[%clk 0:00:02]} 46. Qg3 {[%clk 0:00:05]}  Qc1 {[%clk 0:00:01]} 47. Kh3 {[%clk 0:00:06]}  Qh1+ {[%clk 0:00:01]} 48. Kg4 {[%clk 0:00:06]}  Qf1 {[%clk 0:00:02]} 49. Qh3 {[%clk 0:00:05]}  Qf5+ {[%clk 0:00:02]} 50. Kg3 {[%clk 0:00:06]}  Qe5+ {[%clk 0:00:03]} 51. Kg2 {[%clk 0:00:06]}  Qg7+ {[%clk 0:00:03]} 52. Qg3 {[%clk 0:00:06]}  Qh6 {[%clk 0:00:04]} 53. Qh4+ {[%clk 0:00:05]}  Qg5+ {[%clk 0:00:04]} 54. Qxg5+ {[%clk 0:00:06]}  Kd7 {[%clk 0:00:05]} 55. h6 {[%clk 0:00:06]} 1-0


[Site "https://www.chess.com"]

[Event "Titled Tuesday Blitz December 7 2021"]
[White "Dmitrenko, Viktor"]
[Black "Gaehwiler, Gabriel"]
[WhiteFideId "14110270"]
[BlackFideId "1314530"]
[WhiteElo "2262"]
[BlackElo "2383"]
[Result "1-0"]
[Round "10"]
[TimeControl "180+1"]
[Date "2021.12.07"]
[WhiteClock "0:00:03"]
[BlackClock "0:00:13"]

1. d4 {[%clk 0:03:00]}  Nf6 {[%clk 0:02:59]} 2. Nf3 {[%clk 0:03:00]}  g6 {[%clk 0:02:59]} 3. c3 {[%clk 0:02:58]}  Bg7 {[%clk 0:02:59]} 4. Bg5 {[%clk 0:02:58]}  b6 {[%clk 0:02:58]} 5. Nbd2 {[%clk 0:02:57]}  Bb7 {[%clk 0:02:59]} 6. Bxf6 {[%clk 0:02:56]}  exf6 {[%clk 0:02:46]} 7. e4 {[%clk 0:02:52]}  O-O {[%clk 0:02:43]} 8. Bd3 {[%clk 0:02:51]}  d5 {[%clk 0:02:43]} 9. O-O {[%clk 0:02:44]}  Nd7 {[%clk 0:02:38]} 10. a4 {[%clk 0:02:35]}  c5 {[%clk 0:02:32]} 11. a5 {[%clk 0:02:29]}  dxe4 {[%clk 0:02:30]} 12. Nxe4 {[%clk 0:02:21]}  f5 {[%clk 0:02:24]} 13. Nd6 {[%clk 0:02:15]}  Bxf3 {[%clk 0:02:19]} 14. Qxf3 {[%clk 0:02:14]}  cxd4 {[%clk 0:02:19]} 15. cxd4 {[%clk 0:02:06]}  Bxd4 {[%clk 0:02:10]} 16. Qd5 {[%clk 0:01:29]}  Bg7 {[%clk 0:01:04]} 17. Bc4 {[%clk 0:01:20]}  Ne5 {[%clk 0:00:53]} 18. Bb3 {[%clk 0:01:17]}  Kh8 {[%clk 0:00:41]} 19. Rad1 {[%clk 0:01:11]}  bxa5 {[%clk 0:00:36]} 20. h3 {[%clk 0:00:50]}  f4 {[%clk 0:00:32]} 21. Rfe1 {[%clk 0:00:46]}  Qf6 {[%clk 0:00:22]} 22. Rxe5 {[%clk 0:00:39]}  Qxe5 {[%clk 0:00:22]} 23. Nxf7+ {[%clk 0:00:20]}  Rxf7 {[%clk 0:00:21]} 24. Qxf7 {[%clk 0:00:17]}  Rf8 {[%clk 0:00:20]} 25. Qxa7 {[%clk 0:00:15]}  f3 {[%clk 0:00:20]} 26. Rd7 {[%clk 0:00:12]}  fxg2 {[%clk 0:00:18]} 27. Bd5 {[%clk 0:00:11]}  Qxb2 {[%clk 0:00:17]} 28. Kxg2 {[%clk 0:00:10]}  Qf6 {[%clk 0:00:17]} 29. Rf7 {[%clk 0:00:07]}  Qg5+ {[%clk 0:00:16]} 30. Kf1 {[%clk 0:00:06]}  Qxd5 {[%clk 0:00:15]} 31. Rxg7 {[%clk 0:00:06]}  Qh1+ {[%clk 0:00:15]} 32. Ke2 {[%clk 0:00:06]}  Qe4+ {[%clk 0:00:14]} 33. Kf1 {[%clk 0:00:06]}  Qh1+ {[%clk 0:00:14]} 34. Ke2 {[%clk 0:00:06]}  Qxh3 {[%clk 0:00:14]} 35. Qd4 {[%clk 0:00:03]}  Qf3+ {[%clk 0:00:13]} 36. Ke1 {[%clk 0:00:03]}  Re8+ {[%clk 0:00:13]} 37. Re7+ {[%clk 0:00:03]}  Kg8 {[%clk 0:00:13]} 38. Qg7# {[%clk 0:00:03]} 1-0


[Site "https://www.chess.com"]